[Event "Sparkassen Open 2018"]
[Site "Heusenstamm"]
[Date "2018.11.25"]
[Round "7"]
[White "Burkhardt, Holger"]
[Black "Klundt, Klaus"]
[Result "1-0"]
[ECO "A45"]
[WhiteElo "2005"]
[BlackElo "2313"]
[Annotator "NA"]
[PlyCount "79"]
[EventDate "2018.11.22"]
[EventType "swiss"]
[EventCountry "GER"]
[SourceTitle "playchess.com"]
[Source "ChessBase"]
[SourceQuality "1"]
[TimeControl "40/5400+30:1800+30"]

1. d4 {[%emt 0:00:00]} Nf6 {[%emt 0:00:00]} 2. Nc3 {[%emt 0:00:00]} d5 {[%emt 0:00:00]} 3. Bf4 {[%emt 0:00:00]} e6 {[%emt 0:00:16]} 4. Nb5 {[%emt 0:00:00]} Na6 {[%emt 0:00:15]} 5. a3 {[%emt 0:00:03]} c6 {[%emt 0:02:29]} 6. Nc3 {[%emt 0:00:06]} Bd6 {[%emt 0:00:53]} 7. e3 {[%emt 0:00:07]} b6 {[%emt 0:00:22]} 8. Nf3 {[%emt 0:01:48]} Bxf4 {[%emt 0:00:57]} 9. exf4 {[%emt 0:00:03]} O-O {[%emt 0:00:38]} 10. Ne5 {[%emt 0:03:25]} c5 {[%emt 0:02:37]} 11. Bd3 {[%emt 0:22:15]} cxd4 {[%emt 0:05:07]} 12. Nb5 {[%emt 0:00:18]} Nc5 {[%emt 0:01:12]} 13. Nxd4 {[%emt 0:00:26]} Bb7 {[%emt 0:02:27]} 14. O-O {[%emt 0:01:13]} Rc8 {[%emt 0:01:01]} 15. Re1 {[%emt 0:01:28]} Qd6 {[%emt 0:08:47]} 16. Re3 {[%emt 0:05:25]} Nxd3 {[%emt 0:02:44]} 17. Qxd3 {[%emt 0:05:40]} Ne4 {[%emt 0:01:55]} 18. Rae1 {[%emt 0:15:33]} Rfe8 {[%emt 0:10:58]} 19. f3 {[%emt 0:19:07]} f6 {[%emt 0:13:47]} 20. Nb5 {[%emt 0:00:31]} Qe7 {[%emt 0:05:45]} 21. Ng4 {[%emt 0:04:24]} Nc5 {[%emt 0:01:04]} 22. Qe2 {[%emt 0:00:19]} Ba6 {[%emt 0:00:47]} 23. c4 {[%emt 0:02:34]} dxc4 {[%emt 0:02:01]} 24. Nc3 {[%emt 0:00:47]} Rcd8 {[%emt 0:08:19]} 25. f5 {[%emt 0:00:39]} e5 {[%emt 0:00:52]} 26. f4 {[%emt 0:00:46]} Nd3 {[%emt 0:00:57]} 27. fxe5 {[%emt 0:01:01]} fxe5 {[%emt 0:00:05]} 28. f6 {[%emt 0:01:24]} gxf6 {[%emt 0:00:23]} 29. Rf1 {[%emt 0:00:20]} Rf8 {[%emt 0:00:30]} 30. Ne4 {[%emt 0:01:15]} Kh8 {[%emt 0:01:38]} 31. Nexf6 {[%emt 0:00:27]} Qg7 {[%emt 0:03:21]} 32. Rh3 {[%emt 0:00:16]} Rxf6 {[%emt 0:03:43]} 33. Nxf6 {[%emt 0:00:10]} h6 {[%emt 0:00:02]} 34. Qe3 {[%emt 0:02:59]} Nf4 {[%emt 0:08:50]} 35. Rxf4 {[%emt 0:00:01]} exf4 {[%emt 0:00:01]} 36. Qxf4 {[%emt 0:00:02]} Qf8 {[%emt 0:00:03]} 37. Rxh6+ {[%emt 0:01:30]} Kg7 {[%emt 0:00:01]} 38. Nh5+ {[%emt 0:02:09]} Kg8 {[%emt 0:00:15]} 39. Qg5+ Kf7 40. Qf6+ {[%emt 0:00:53]} 1-0